fUST/lending_fUST_20240409
["ID","MTS","AMOUNT","RATE_DAILY","PERIOD"]
[321899595,1712597433554,-500.0,0.00047,4]
[321899597,1712597433563,-1400.0,0.00047,120]
[321899599,1712597433572,-173.36085078,0.00047292,2]
[321899601,1712597433580,-363.2190771,0.00047339,120]
[321899603,1712597433589,-241.9189454,0.00047339,120]
[321899605,1712597433599,-8254.00889414,0.0004734,4]
[321899606,1712597433608,-154.84515485,0.00047341,4]
[321899608,1712597433617,-157.69224403,0.00047341,4]
[321899610,1712597433627,-353.86074834,0.00047341,4]
[321899612,1712597433637,-155.09290708,0.00047342,4]
[321899614,1712597433647,-1482.7914286,0.00047342,4]
[321899616,1712597433656,-491.01173548,0.00047342,4]
[321899618,1712597433666,-245.74881865,0.00047342,4]
[321899620,1712597433675,-154.87609912,0.00047342,4]
[321899622,1712597433686,-2195.1868347,0.00047342,4]
[321899624,1712597433695,-8358.44020812,0.00047343,4]
[321899627,1712597433705,-537.45185021,0.00047344,4]
[321899628,1712597433714,-207.05974647,0.00047344,4]
[321899630,1712597433726,-240.32367457,0.00047344,4]
[321899631,1712597433735,-22733.88796952,0.00047344,4]
[321899633,1712597433744,-765.5500005,0.00047345,120]
[321899634,1712597433754,-207.32182076,0.00047345,4]
[321899636,1712597433763,-227.19874345,0.00047345,2]
[321899637,1712597433772,-244.82173342,0.00047352,4]
[321899638,1712597433781,-692.26074112,0.00047352,4]
[321899639,1712597433790,-4272.2809961,0.00047391,3]
[321899641,1712597433799,-14932.37671368,0.00047392,60]
[321899661,1712597438645,-2862.4,0.00047392,60]
[321899662,1712597438657,-6491.99999996,0.00047392,60]
[321899683,1712597438918,-6000.41861704,0.00047392,60]
[321899686,1712597438938,-1299.60924353,0.00047392,60]
[321899737,1712597440913,-24223.54233851,0.00047392,60]
[321900014,1712597719255,542.85379298,2e-05,120]
[321900015,1712598195657,-160.351188,0.00027397,2]
[321900019,1712598440122,-166.666666,0.00044302,2]
[321900020,1712598440143,-183.08401483,0.00044543,2]
[321900021,1712598441099,-16.91598517,0.00044543,2]
[321900022,1712598441121,-250.0,0.00044891,2]
[321900023,1712598441142,-173.88119,0.00044897,2]
[321900024,1712598441163,-924.16540246,0.0004502,4]
[321900025,1712598441184,-550.0,0.00045034,3]
[321900026,1712598441209,-550.0,0.00045034,5]
[321900027,1712598441230,-349.63163746,0.00045035,2]
[321900028,1712598443836,327.21813569,0.00027397,2]
[321900029,1712598457851,690.1102328,0.00027397,2]
[321900031,1712598471820,250.55874693,0.00027397,2]
[321900032,1712598473207,576.36696068,0.00027397,2]
[321900033,1712598491814,250.55874693,0.00027397,2]
[321900034,1712598522052,314.06314232,0.00027397,2]
[321900035,1712598525830,251.48132287,0.00027397,2]
[321900037,1712598543841,251.48132287,0.00027397,2]
[321900038,1712598547989,314.06314232,0.00027397,2]
[321900039,1712598563495,156.34959942,0.00027397,2]
[321900040,1712598565861,251.48132287,0.00027397,2]
[321900041,1712598569989,314.1997281,0.00027397,2]
[321900042,1712598582175,11892.0675962,0.00027397,2]
[321900044,1712598631677,-1086.90254792,0.00027394,2]
[321900045,1712598631713,-562.64730962,0.00027394,2]
[321900046,1712598631750,-303.74719216,0.00027395,2]
[321900050,1712598631788,-192.96186117,0.00027395,2]
[321900062,1712598631910,-154.86062544,0.00027396,2]
[321900066,1712598631949,-300.0,0.00027396,2]
[321900071,1712598631987,-154.86062544,0.00027396,2]
[321900075,1712598632024,-150.0,0.00027396,2]
[321900080,1712598632061,-4151.43472566,0.00027397,2]
[321900084,1712598632098,-254.50814649,0.00027397,2]
[321900088,1712598632137,-314.1997281,0.00027397,2]
[321900100,1712598632296,-400.0,0.00030136,2]
[321900104,1712598632307,-20.0,0.00030136,2]
[321900107,1712598632317,-587.0,0.00033149,2]
[321900109,1712598632326,-823.0,0.00036464,2]
[321900111,1712598632335,-1152.0,0.0004011,3]
[321900113,1712598632344,-154.86062544,0.00040998,4]
[321900114,1712598632354,-1144.570092,0.00040998,4]
[321900116,1712598632386,-813.88376075,0.00040998,4]
[321900128,1712598637208,154.86062544,0.00027393,2]
[321900143,1712598637893,-2548.40467265,0.00040998,4]
[321900145,1712598637904,-1310.96630797,0.00040999,4]
[321900167,1712598639900,-1220.77164399,0.00040999,4]
[321900168,1712598639978,-2533.74653439,0.00040999,4]
[321900169,1712598639987,-3028.13634906,0.00041,15]
[321900170,1712598640000,-5826.96485793,0.00041,15]
[321900171,1712598640011,-2754.52492401,0.00041,15]
[321900172,1712598640020,-281.96105769,0.00042934,2]
[321900173,1712598640029,-3477.6795265,0.00044,2]
[321900174,1712598640038,-168.73084583,0.00044122,3]
[321900221,1712598646160,5323.2598472,0.00027397,2]
[321900222,1712598647997,314.1997281,0.00027397,2]
[321900223,1712598649509,220.17723349,0.00027397,2]
[321900224,1712598649848,254.50814649,0.00027397,2]
[321900225,1712598655665,154.86062544,0.00027397,2]
[321900226,1712598659749,213.65463678,0.00027397,2]
[321900227,1712598664319,16043.50232186,0.00027397,2]
[321900228,1712598665112,822.32574953,0.00024305,2]
[321900229,1712598665996,314.1997281,0.00027397,2]
[321900230,1712598666892,157.26229734,0.00027397,2]
[321900231,1712598667855,254.50814649,0.00027397,2]
[321900232,1712598675419,220.17723349,0.00027397,2]
[321900233,1712598677717,154.86062544,0.00027397,2]
[321900234,1712598680176,3943.37589688,0.00027397,2]
[321900235,1712598681996,314.1997281,0.00027397,2]
[321900236,1712598687849,283.49786466,0.00027397,2]
[321900237,1712598695415,220.17723349,0.00027397,2]
[321900238,1712598695644,245.26382534,0.00027397,2]
[321900239,1712598699994,314.1997281,0.00027397,2]
[321900240,1712598711428,220.17723349,0.00027397,2]
[321900241,1712598716005,314.1997281,0.00027397,2]
[321900243,1712598724344,753.84298877,0.000274,2]
[321900245,1712598734001,314.1997281,0.00027397,2]
[321900246,1712598742292,257.96660381,0.000274,2]
[321900248,1712598756008,187.89523814,0.00027397,2]
[321900250,1712598782167,1101.58520186,0.00027397,2]
[321900252,1712598831976,15955.07293742,0.0002,2]
[321900254,1712598856841,1185.57237452,0.000125,2]
[321900278,1712598937785,151.0,0.00028,2]
[321900284,1712599276246,779.97302428,0.00028,2]
[321900285,1712599334669,850.86593121,0.0003,30]
[321900286,1712599346133,255.44422559,0.00028,2]
[321900287,1712599350249,3470.70800831,0.00028,2]
[321900300,1712599453099,384.7876243,0.00028,2]
[321900301,1712599457602,384.7876243,0.00028,2]
[321900302,1712599491615,481.65499934,0.00028,2]
[321900303,1712599534155,-239.659655,0.00037914,120]
[321900304,1712599534179,-515.62594246,0.000424,120]
[321900305,1712599534256,-2126.35779954,0.00041,15]
[321900306,1712599534340,-894.970121,0.00041,30]
[321900367,1712599645315,-154.87609912,0.00037643,4]
[321900368,1712599645337,-34.23628788,0.00037644,4]
[321900369,1712599650092,-212.91504204,0.00037642,4]
[321900370,1712599650112,-755.95607818,0.00037642,4]
[321900371,1712599650132,-210.51574839,0.00037644,4]
[321900372,1712599720019,166.533725,0.00027397,2]
[321900373,1712599746148,-215.70131407,0.00029834,2]
[321900374,1712599746169,-1131.68428374,0.00029834,2]
[321900375,1712599746191,-1616.75713304,0.00029834,2]
[321900376,1712599746213,-154.87609912,0.00029835,2]
[321900377,1712599746235,-1086.90254792,0.00029835,2]
[321900378,1712599746256,-192.96186117,0.00029835,2]
[321900379,1712599746278,-263.37349984,0.00029836,2]
[321900380,1712599746298,-407.59656825,0.00029837,2]
[321900381,1712599746318,-154.87609912,0.00029837,2]
[321900382,1712599746338,-279.24986935,0.00029838,2]
[321900383,1712599750239,-154.87609912,0.00029833,2]
[321900384,1712599750261,-8.71148088,0.00029838,2]
[321900385,1712599757107,-207.18381603,0.00029834,2]
[321900386,1712599757127,-154.87609912,0.00029834,2]
[321900387,1712599757147,-524.59337771,0.00029834,2]
[321900388,1712599757168,-5.09171376,0.00029838,2]
[321900389,1712599761104,-184.41880695,0.00029833,2]
[321900390,1712599764080,-453.47468497,0.00029833,2]
[321900391,1712599764100,-2.06286752,0.00029838,2]
[321900392,1712599764120,-200.0,0.00037038,2]
[321900393,1712599764141,-635.67928553,0.00037544,4]
[321900394,1712599764161,-400.0,0.00037546,2]
[321900395,1712599764181,-150.0,0.00037546,2]
[321900396,1712599764202,-436.60035195,0.0003755,2]
[321900450,1712599832240,-547.63454468,0.00037548,4]
[321900451,1712599832250,-557.93304243,0.00037549,4]
[321900555,1712599838014,-278.36597163,0.00037547,4]
[321900556,1712599838024,-962.56407584,0.00037549,4]
[321900557,1712599838034,-154.87609912,0.00037549,4]
[321900559,1712599838043,-718.02743194,0.0003755,2]
[321900560,1712599838052,-1194.408257,0.00037626,2]
[321900561,1712599838061,-182.19183,0.00037656,2]
[321900562,1712599838071,-281.7045139,0.00037734,2]
[321900563,1712599838080,-222.3768887,0.00037795,4]
[321900565,1712599838089,-1001.144453,0.00037979,2]
[321900566,1712599838099,-200.24862657,0.00038664,2]
[321900567,1712599838109,-2158.55334904,0.00038766,4]
[321900569,1712599838119,-521.10292742,0.00038782,4]
[321900571,1712599838128,-156.53654792,0.00038786,2]
[321900573,1712599838137,-1235.75682914,0.000389,2]
[321900574,1712599838147,-156.53654773,0.00039318,2]
[321900576,1712599838156,-400.0,0.00039385,3]
[321900578,1712599838165,-3036.31185894,0.00039386,4]
[321900580,1712599838174,-857.05459567,0.00039386,4]
[321900582,1712599838184,-808.30771551,0.00039751,2]
[321900584,1712599838193,-558.17873221,0.00039784,4]
[321900586,1712599838203,-1191.19563009,0.00039784,4]
[321900588,1712599838212,-334.37663185,0.00039784,4]
[321900590,1712599838221,-1525.35608426,0.00039784,4]
[321900592,1712599838231,-271.65507125,0.00039784,4]
[321900594,1712599838240,-940.84753386,0.00039784,4]
[321900596,1712599838250,-429.6611061,0.00039784,4]
[321900598,1712599838259,-155.67677214,0.00039784,4]
[321900599,1712599838268,-263.15677956,0.00039784,4]
[321900601,1712599838277,-617.20628334,0.00039784,4]
[321900603,1712599838286,-173.78276017,0.00039784,2]
[321900604,1712599838295,-522.24797385,0.00039784,4]
[321900605,1712599838304,-155.12390088,0.00039785,4]
[321900606,1712599838314,-266.80138054,0.00039785,4]
[321900607,1712599838322,-24900.0,0.00039786,2]
[321900608,1712599838332,-156.53654773,0.00039851,2]
[321900609,1712599838341,-171.537602,0.00039858,2]
[321900610,1712599838351,-2073.3361118,0.00039874,2]
[321900611,1712599838361,-201.92492906,0.0003999,2]
[321900612,1712599838371,-1530.43019705,0.0004,2]
[321900613,1712599838380,-609.7787752,0.00040118,2]
[321900614,1712599838390,-156.53654773,0.00040383,2]
[321900615,1712599838399,-156.53654773,0.00040915,2]
[321900616,1712599838408,-166.666666,0.00041096,2]
[321900617,1712599838418,-1042.48402363,0.00041342,4]
[321900618,1712599838427,-156.53654773,0.00041448,2]
[321900619,1712599838436,-808.30771551,0.00041533,2]
[321900620,1712599838446,-156.53654773,0.0004198,2]
[321900621,1712599838455,-166.666666,0.00042058,2]
[321900622,1712599838464,-1114.93621039,0.000424,120]
[321900623,1712599838473,-156.53654773,0.00042512,2]
[321900624,1712599838483,-381.45409017,0.00042647,4]
[321900625,1712599838493,-500.0,0.00042999,31]
[321900626,1712599838502,-406.54098381,0.00042999,31]
[321900627,1712599838511,-247.73545055,0.00042999,31]
[321900629,1712599838520,-46831.88746364,0.00043,120]
[321900630,1712599838541,-5847.11253636,0.00043,120]
[321900631,1712599838550,-166.666666,0.00043019,2]
[321900632,1712599838631,-156.53654773,0.00043045,2]
[321900633,1712599838641,-808.30771551,0.00043316,2]
[321900634,1712599838651,-560.0,0.00043324,3]
[321900635,1712599838660,-3566.11717596,0.00043518,4]
[321900636,1712599838670,-478.22573891,0.00043518,4]
[321900637,1712599838679,-311.73489051,0.00043518,4]
[321900638,1712599838689,-764.16848146,0.00043518,4]
[321900639,1712599838698,-1736.532992,0.00043519,4]
[321900640,1712599838707,-156.53654773,0.00043577,2]
[321900641,1712599838716,-2000.0,0.00043882,2]
[321900642,1712599838725,-9119.77172257,0.000439,5]
[321900643,1712599838735,-1235.75682914,0.000439,2]
[321900644,1712599838744,-166.666666,0.00043981,2]
[321900645,1712599838754,-156.53654773,0.00044109,2]
[321900646,1712599838763,-465.20441598,0.00044118,4]
[321900647,1712599838773,-1603.37741356,0.0004412,4]
[321900648,1712599838782,-239.659655,0.00044233,120]
[321900649,1712599838792,-156.53654773,0.00044641,2]
[321900650,1712599838801,-166.666666,0.00044942,2]
[321900651,1712599838811,-200.0,0.00045,2]
[321900652,1712599838820,-14695.28603082,0.00045,30]
[321900653,1712599838829,-8516.28804601,0.00045,120]
[321900654,1712599838843,-242.10042867,0.00045031,4]
[321900655,1712599838852,-18379.6033255,0.00045031,4]
[321900656,1712599838863,-156.25338756,0.00045033,4]
[321900657,1712599838872,-723.58615626,0.00045033,4]
[321900658,1712599838882,-283.20157359,0.00045033,4]
[321900659,1712599838890,-308.98539759,0.00045033,4]
[321900660,1712599838900,-3305.22191413,0.00045033,4]
[321900661,1712599838911,-811.98237118,0.00045033,4]
[321900662,1712599838925,-170.63807538,0.00045033,4]
[321900663,1712599838934,-207.10165673,0.00045033,4]
[321900664,1712599838943,-193.53340394,0.00045033,4]
[321900665,1712599838952,-157.23136049,0.00045033,4]
[321900666,1712599838961,-2764.09755836,0.00045033,4]
[321900667,1712599838972,-253.47782713,0.00045033,4]
[321900668,1712599838981,-232.26707371,0.00045033,4]
[321900669,1712599838993,-1737.91130619,0.00045033,4]
[321900670,1712599839009,-808.30771551,0.00045098,2]
[321900671,1712599839021,-156.53654773,0.00045174,2]
[321900672,1712599839030,-156.53654773,0.00045706,2]
[321900673,1712599839040,-166.666666,0.00045904,2]
[321900674,1712599839049,-156.53654773,0.00046238,2]
[321900675,1712599839058,-1000.0,0.0004658,120]
[321900676,1712599839067,-156.53654773,0.00046771,2]
[321900677,1712599839076,-158.95687571,0.00046871,3]
[321900678,1712599839086,-808.30771551,0.0004688,2]
[321900679,1712599839095,-45692.53550425,0.0004698,3]
[321900680,1712599839104,-68200.8508604,0.0004698,120]
[321900681,1712599839114,-151.0,0.0004698,7]
[321900682,1712599839123,-1145.777748,0.0004698,7]
[321900683,1712599839132,-1145.777748,0.0004698,7]
[321900684,1712599839142,-151.0,0.0004698,7]
[321900685,1712599839153,-151.0,0.0004698,7]
[321900686,1712599839163,-151.0,0.0004698,7]
[321900687,1712599839173,-151.0,0.0004698,7]
[321900688,1712599839183,-151.0,0.0004698,7]
[321900689,1712599839193,-151.0,0.0004698,7]
[321900690,1712599839203,-2175.60669,0.0004698,7]
[321900691,1712599839213,-2175.60669,0.0004698,7]
[321900692,1712599839222,-151.0,0.0004698,7]
[321900693,1712599839232,-249.419113,0.0004698,7]
[321900694,1712599839242,-249.419113,0.0004698,7]
[321900695,1712599839252,-222.747372,0.0004698,7]
[321900696,1712599839261,-290.569538,0.0004698,7]
[321900697,1712599839270,-186.295214,0.0004698,7]
[321900698,1712599839279,-186.295214,0.0004698,7]
[321900699,1712599839288,-1246.436725,0.0004698,7]
[321900700,1712599839297,-1246.436725,0.0004698,7]
[321900701,1712599839306,-151.0,0.0004698,7]
[321900702,1712599839315,-151.0,0.0004698,7]
[321900703,1712599839324,-151.0,0.0004698,7]
[321900704,1712599839336,-151.0,0.0004698,7]
[321900705,1712599839345,-151.0,0.0004698,7]
[321900706,1712599839354,-151.0,0.0004698,7]
[321900707,1712599839365,-151.0,0.0004698,7]
[321900708,1712599839374,-151.0,0.0004698,7]
[321900709,1712599839383,-151.0,0.0004698,7]
[321900710,1712599839392,-151.0,0.0004698,7]
[321900711,1712599839402,-298.427604,0.0004698,7]
[321900712,1712599839412,-165.0,0.00047,90]
[321900713,1712599839421,-153.53225864,0.00047121,30]
[321900714,1712599839430,-151.0,0.00047266,7]
[321900716,1712599839440,-151.0,0.00047266,7]
[321900717,1712599839449,-151.0,0.00047266,7]
[321900718,1712599839459,-185.031876,0.00047266,7]
[321900719,1712599839469,-121838.10193641,0.00047266,60]
[321900720,1712599839479,-565.00376137,0.00047266,30]
[321900721,1712599839490,-154.87609812,0.00047266,120]
[321900722,1712599839499,-3523.29952577,0.00047266,2]
[321900723,1712599839509,-10047.74123954,0.00047266,2]
[321900724,1712599839519,-151.0,0.00047275,7]
[321900725,1712599839529,-151.0,0.00047275,7]
[321900726,1712599839538,-151.0,0.00047275,7]
[321900727,1712599839548,-151.0,0.00047275,7]
[321900728,1712599839557,-151.96461,0.00047275,7]
[321900729,1712599839566,-151.0,0.00047281,7]
[321900730,1712599839575,-1145.777748,0.00047281,7]
[321900731,1712599839585,-1145.777748,0.00047281,7]
[321900732,1712599839594,-151.0,0.00047281,7]
[321900733,1712599839604,-151.0,0.00047282,7]
[321900734,1712599839614,-249.753083,0.00047282,7]
[321900735,1712599839624,-244.073045,0.00047282,7]
[321900736,1712599839633,-1145.777748,0.00047282,7]
[321900737,1712599839642,-1145.777748,0.00047282,7]
[321900738,1712599839651,-151.0,0.00047285,7]
[321900739,1712599839660,-151.0,0.00047285,7]
[321900740,1712599839670,-151.0,0.00047285,7]
[321900741,1712599839679,-151.0,0.00047285,7]
[321900742,1712599839688,-206.554428,0.00047285,7]
[321900743,1712599839697,-2175.60669,0.00047285,7]
[321900744,1712599839706,-2175.60669,0.00047285,7]
[321900745,1712599839716,-151.0,0.00047285,7]
[321900746,1712599839725,-249.419113,0.00047285,7]
[321900747,1712599839735,-249.419113,0.00047285,7]
[321900748,1712599839745,-186.295214,0.00047285,7]
[321900749,1712599839754,-186.295214,0.00047285,7]
[321900750,1712599839763,-1246.436725,0.00047285,7]
[321900751,1712599839773,-1246.436725,0.00047285,7]
[321900752,1712599839783,-151.0,0.00047285,7]
[321900753,1712599839793,-151.0,0.00047285,7]
[321900754,1712599839803,-151.0,0.00047285,7]
[321900755,1712599839813,-156.53654773,0.00047303,2]
[321900756,1712599839883,-17014.382351,0.00047387,30]
[321900757,1712599839893,-151.0,0.00047387,7]
[321900758,1712599839902,-151.0,0.00047387,7]
[321900759,1712599839912,-151.0,0.00047387,7]
[321900760,1712599839923,-1145.777748,0.00047387,7]
[321900761,1712599839932,-1145.777748,0.00047387,7]
[321900762,1712599839942,-262.077024,0.00047387,7]
[321900763,1712599839952,-151.0,0.00047387,7]
[321900764,1712599839962,-151.0,0.00047387,7]
[321900765,1712599839971,-2175.60669,0.00047387,7]
[321900766,1712599839981,-2175.60669,0.00047387,7]
[321900767,1712599839991,-151.0,0.00047387,7]
[321900768,1712599840000,-249.419113,0.00047387,7]
[321900769,1712599840010,-249.419113,0.00047387,7]
[321900770,1712599840019,-186.295214,0.00047387,7]
[321900771,1712599840029,-186.295214,0.00047387,7]
[321900772,1712599840038,-1246.436725,0.00047387,7]
[321900773,1712599840047,-1246.436725,0.00047387,7]
[321900774,1712599840057,-151.0,0.00047387,7]
[321900775,1712599840066,-151.0,0.00047387,7]
[321900776,1712599840075,-151.0,0.00047387,7]
[321900777,1712599840085,-1484.4319684,0.0004739,4]
[321900778,1712599840094,-537.45185021,0.0004739,4]
[321900779,1712599840103,-478.63566699,0.0004739,30]
[321900780,1712599840113,-210.77487099,0.00047391,4]
[321900781,1712599840122,-3969.74075713,0.00047391,120]
[321900782,1712599840131,-153.139591,0.00047391,7]
[321900783,1712599840140,-151.0,0.00047391,7]
[321900784,1712599840149,-153.53225864,0.0004762,30]
[321900785,1712599840158,-783.0,0.00047656,3]
[321900786,1712599840168,-156.53654773,0.00047835,2]
[321900787,1712599840177,-156.53654773,0.00048368,2]
[321900788,1712599840187,-155.25956854,0.00048467,30]
[321900789,1712599840197,-649.47104033,0.00048498,2]
[321900790,1712599840207,-3712.81767264,0.00048499,4]
[321900791,1712599840219,-20447.70648844,0.000485,2]
[321900792,1712599840228,-151.0,0.000485,7]
[321900793,1712599840239,-151.0,0.000485,7]
[321900794,1712599840248,-151.0,0.000485,7]
[321900795,1712599840258,-1145.777748,0.000485,7]
[321900796,1712599840267,-1145.777748,0.000485,7]
[321900797,1712599840277,-151.0,0.000485,7]
[321900798,1712599840287,-151.0,0.000485,7]
[321900799,1712599840296,-2175.60669,0.000485,7]
[321900800,1712599840305,-2175.60669,0.000485,7]
[321900801,1712599840314,-151.0,0.000485,7]
[321900802,1712599840323,-249.419113,0.000485,7]
[321900803,1712599840333,-249.419113,0.000485,7]
[321900804,1712599840342,-186.295214,0.000485,7]
[321900805,1712599840351,-186.295214,0.000485,7]
[321900806,1712599840363,-1246.436725,0.000485,7]
[321900807,1712599840372,-1246.436725,0.000485,7]
[321900808,1712599840381,-151.0,0.000485,7]
[321900809,1712599840390,-151.0,0.000485,7]
[321900810,1712599840399,-151.0,0.000485,7]
[321900811,1712599840408,-200.0,0.000489,2]
[321900812,1712599840418,-401.57327833,0.000489,3]
[321900813,1712599840428,-156.53654773,0.000489,2]
[321900814,1712599840438,-1235.75682914,0.000489,2]
[321900815,1712599840449,-153.53225864,0.00048961,30]
[321900816,1712599840458,-155.25956854,0.00048984,30]
[321900817,1712599840468,-66333.0,0.00049,30]
[321900818,1712599840478,-3369.67509796,0.00049,120]
[321900819,1712599840488,-151.0,0.00049,7]
[321900820,1712599840498,-151.0,0.00049,7]
[321900821,1712599840508,-151.0,0.00049,7]
[321900822,1712599840518,-151.0,0.00049,7]
[321900823,1712599840527,-2000.0,0.00049,68]
[321900824,1712599840536,-1145.777748,0.00049,7]
[321900825,1712599840546,-1145.777748,0.00049,7]
[321900826,1712599840555,-151.0,0.00049,7]
[321900827,1712599840564,-151.0,0.00049,7]
[321900828,1712599840574,-2175.60669,0.00049,7]
[321900829,1712599840583,-2175.60669,0.00049,7]
[321900830,1712599840592,-151.0,0.00049,7]
[321900832,1712599840602,-249.419113,0.00049,7]
[321900834,1712599840611,-249.419113,0.00049,7]
[321900837,1712599840620,-186.295214,0.00049,7]
[321900840,1712599840629,-186.295214,0.00049,7]
[321900843,1712599840638,-1246.436725,0.00049,7]
[321900846,1712599840647,-1246.436725,0.00049,7]
[321900850,1712599840656,-151.0,0.00049,7]
[321900852,1712599840665,-151.0,0.00049,7]
[321900854,1712599840675,-151.0,0.00049,7]
[321900855,1712599840684,-2897.79348,0.0004901,68]
[321900856,1712599840694,-160.351188,0.00049315,2]
[321900857,1712599840704,-166.533725,0.00049315,2]
[321900859,1712599840714,-1593.77395052,0.000499,2]
[321900861,1712599840723,-206.78943606,0.00049997,4]
[321900862,1712599840732,-254.40193028,0.00049998,4]
[321900864,1712599840741,-548.71242219,0.00049998,4]
[321900866,1712599840751,-7678.03526613,0.00049998,4]
[321900867,1712599840759,-151.0,0.00049998,7]
[321900868,1712599840769,-151.0,0.00049998,7]
[321900869,1712599840779,-2175.60669,0.00049998,7]
[321900870,1712599840788,-2175.60669,0.00049998,7]
[321900871,1712599840797,-154.16445,0.00049998,7]
[321900872,1712599840807,-249.419113,0.00049998,7]
[321900873,1712599840816,-249.419113,0.00049998,7]
[321900874,1712599840826,-186.295214,0.00049998,7]
[321900875,1712599840837,-186.295214,0.00049998,7]
[321900876,1712599840847,-628.13718181,0.00049998,7]
[321900894,1712599843241,-623.81906228,0.00048499,4]
[321900896,1712599843255,-618.29954319,0.00049998,7]
[321900899,1712599843267,-1246.436725,0.00049998,7]
[321900901,1712599843279,-151.0,0.00049998,7]
[321900903,1712599843292,-151.0,0.00049998,7]
[321900906,1712599843304,-274.715452,0.00049998,7]
[321900908,1712599843316,-155.99996299,0.00049999,4]
[321900910,1712599843329,-155.18037566,0.00049999,4]
[321900913,1712599843341,-181.29241369,0.00049999,4]
[321900915,1712599843353,-157.08950999,0.00049999,4]
[321900917,1712599843366,-203.66164366,0.00049999,4]
[321900920,1712599843379,-200.0,0.00049999,4]
[321900922,1712599843392,-1406.31070622,0.0005,120]
[321900923,1712599843409,-822.32575053,0.0005,120]
[321900940,1712599843677,-76335.87847671,0.0005,120]
[321901571,1712599865099,1212.07193351,0.00024041,2]
[321901574,1712600039062,154.87609912,0.00024041,2]
[321901575,1712600224316,172.241097,0.00027397,2]
[321901593,1712600699167,-160.726723,0.00041,30]
[321901594,1712600701366,-160.726723,0.00041674,120]
[321901597,1712600734163,160.351188,0.00027397,2]
[321901608,1712600835123,-190.72501436,0.00034448,4]
[321901609,1712600835144,-1868.05862755,0.00034449,2]
[321901610,1712600835164,-295.78468449,0.00034548,4]
[321901611,1712600835183,-154.84515485,0.00034548,4]
[321901612,1712600835205,-503.62845661,0.00034549,33]
[321901613,1712600836103,-264.78625174,0.00034549,33]
[321901614,1712600836127,-1666.38893523,0.0003455,4]
[321901615,1712600836149,-547.63454468,0.00034551,4]
[321901616,1712600836168,-253.38244587,0.00034551,2]
[321901617,1712600836188,-154.84515485,0.00034553,4]
[321901618,1712600836208,-595.96032213,0.00035,2]
[321901619,1712600836228,-975.389615,0.0003753,2]
[321901620,1712600836250,-550.0,0.00040992,5]
[321901621,1712600836270,-1284.16704936,0.00040993,4]
[321901622,1712600836297,-920.41851581,0.00040993,4]
[321901623,1712600848106,-595.96032213,0.00037529,2]
[321901624,1712600848133,-42.88479156,0.00040896,2]
[321901625,1712600848165,-1712.23085907,0.00040896,2]
[321901626,1712600848298,-190.72501436,0.00040992,4]
[321901627,1712600848318,-536.6315956,0.00040993,4]
[321901628,1712600883826,519.77926223,0.00027397,2]
[321901630,1712600903325,-478.63566699,0.00040991,30]
[321901631,1712600903350,-16.262905,0.00041,30]
[321901632,1712600910898,158.067665,0.00027397,2]
[321901633,1712600930821,154.84515485,0.00027397,2]
[321901635,1712600946820,154.84515485,0.00027397,2]
[321901636,1712600962824,154.84515485,0.00027397,2]
[321901638,1712600982826,154.84515485,0.00027397,2]
[321901640,1712600998888,178.22869536,0.00027397,2]
[321901659,1712601032313,-639.38013629,0.00038791,4]
[321901660,1712601032322,-1284.48650839,0.00038792,2]
[321901661,1712601032331,-1166.47225466,0.00038892,4]
[321901662,1712601032341,-830.85840079,0.00038893,2]
[321901663,1712601032350,-400.0,0.00039968,3]
[321901664,1712601032361,-9279.79148242,0.00039969,4]
[321901665,1712601032371,-200.0,0.0003997,2]
[321901666,1712601032382,-909.37424379,0.0004066,4]
[321901668,1712601032392,-1991.84091058,0.00040661,4]
[321901670,1712601032402,-250.0,0.00040662,2]